bitfinex-derivatives/quotes_SOLF0:USTF0_20250819
["timestamp","ask_amount","ask_price","bid_price","bid_amount"]
[1755580676242,3.13,179.71,179.62,8.4652]
[1755580676648,3.13,179.71,179.62,2.9]
[1755580677247,3.13,179.71,179.59,4.96264156]
[1755580677453,3.13,179.68,179.58,8.4665]
[1755580678556,3.13,179.68,179.59,5.5663]
[1755580679261,3.13,179.68,179.58,2.9]
[1755580679860,3.13,179.68,179.59,4.96264156]
[1755580680158,3.13,179.68,179.6,2.9]
[1755580682655,3.13,179.68,179.57,5.5668]
[1755580682656,4.38592821,179.67,179.57,2.9]
[1755580682859,3.13,179.66,179.57,2.9]
[1755580683166,3.13,179.64,179.57,2.9]
[1755580684357,3.13,179.62,179.53,2.9]
[1755580684654,8.09264156,179.62,179.53,2.9]
[1755580684856,3.13,179.61,179.53,2.9]
[1755580688857,8.09264156,179.65,179.53,2.9]
[1755580689059,8.09264156,179.65,179.55,4.96264156]
[1755580689060,3.13,179.65,179.55,4.96264156]
[1755580689256,3.13,179.65,179.56,2.9]
[1755580689667,3.13,179.7,179.56,2.9]
[1755580689868,3.13,179.7,179.59,2.9]
[1755580690468,3.13,179.7,179.59,8.4661]
[1755580691171,3.13,179.7,179.61,2.9]
[1755580693176,3.13,179.7,179.61,8.4656]
[1755580693369,3.13,179.7,179.62,2.9]
[1755580693570,137.84,179.71,179.64,2.9]
[1755580694971,3.13,179.7,179.59,2.9]
[1755580695369,8.09264156,179.7,179.59,8.466]
[1755580695674,8.09264156,179.7,179.59,2.9]
[1755580695970,3.13,179.66,179.59,2.9]
[1755580696874,3.13,179.63,179.55,2.9]
[1755580697272,4.96264156,179.64,179.55,2.9]
[1755580697774,3.13,179.66,179.56,2.9]
[1755580698772,3.13,179.66,179.57,5.5667]
[1755580699773,3.13,179.63,179.56,2.9]
[1755580700677,3.13,179.63,179.53,2.9]
[1755580701772,3.13,179.6,179.48,4.96264156]
[1755580701971,3.13,179.6,179.5,2.9]
[1755580702380,3.13,179.6,179.5,8.4689]
[1755580702769,3.13,179.6,179.5,2.9]
[1755580702973,7.99264156,179.64,179.53,2.94]
[1755580703579,7.99264156,179.64,179.53,8.5079]
[1755580704881,7.99264156,179.64,179.55,2.94]
[1755580705177,3.03,179.64,179.55,2.94]
[1755580705572,3.03,179.64,179.55,8.5073]
[1755580705872,3.03,179.64,179.52,2.94]
[1755580706075,3.03,179.64,179.56,5.567]
[1755580706279,4.96264156,179.67,179.57,2.94]
[1755580706580,4.96264156,179.67,179.58,5.5665]
[1755580706874,3.03,179.66,179.57,2.94]
[1755580707981,3.03,179.66,179.57,8.5068]
[1755580708481,4.96264156,179.7,179.57,4.96264156]
[1755580708668,3.03,179.69,179.6,2.94]
[1755580709381,7.99264156,179.69,179.6,2.94]
[1755580712976,3.03,179.68,179.56,2.94]
[1755580713175,3.03,179.65,179.56,2.94]
[1755580713977,3.03,179.62,179.53,2.94]
[1755580714478,3.03,179.62,179.53,8.5079]
[1755580714874,3.03,179.62,179.53,2.94]
[1755580715074,3.03,179.62,179.54,5.5678]
[1755580717674,147.18982432,179.71,179.49,374.12]
[1755580717675,3.03,179.66,179.55,2.94]
[1755580718070,3.03,179.66,179.58,5.5664]
[1755580718279,3.03,179.66,179.57,2.94]
[1755580718778,3.03,179.69,179.6,5.5659]
[1755580718974,3.03,179.69,179.6,2.94]
[1755580719176,3.03,179.66,179.56,7.90264156]
[1755580719379,3.03,179.66,179.57,5.5666]
[1755580719882,3.03,179.66,179.56,13.46974156]
[1755580720077,3.03,179.66,179.56,8.5071]
[1755580720276,3.03,179.66,179.56,2.94]
[1755580720581,3.03,179.66,179.57,5.5669]
[1755580720777,3.03,179.66,179.56,2.94]
[1755580720975,3.03,179.64,179.56,2.94]
[1755580721182,3.03,179.64,179.56,8.507]
[1755580721377,3.03,179.64,179.56,2.94]
[1755580721680,3.03,179.64,179.58,5.5666]
[1755580721882,4.96264156,179.67,179.59,2.94]
[1755580723182,3.03,179.68,179.59,2.94]
[1755580723783,4.96264156,179.7,179.59,4.96264156]
[1755580723987,4.96264156,179.7,179.6,2.94]
[1755580724283,7.40407799,179.69,179.6,2.94]
[1755580724483,3.03,179.69,179.6,2.94]
[1755580724684,3.03,179.69,179.6,8.5058]
[1755580725284,3.03,179.69,179.61,5.5656]
[1755580725684,382.09264156,179.73,179.6,2.94]
[1755580725886,4.37381157,179.72,179.64,2.94]
[1755580726080,382.09264156,179.73,179.64,2.94]
[1755580726280,4.37345687,179.72,179.64,2.94]
[1755580726582,382.09264156,179.73,179.64,2.94]
[1755580726779,4.37265842,179.72,179.64,2.94]
[1755580726980,3.03,179.71,179.64,2.94]
[1755580728787,3.03,179.71,179.53,9.17141728]
[1755580728788,3.03,179.66,179.56,2.94]
[1755580729185,3.03,179.66,179.57,5.5667]
[1755580729379,3.03,179.63,179.56,2.94]
[1755580730189,3.03,179.6,179.56,2.94]
[1755580731292,7.99264156,179.64,179.55,2.94]
[1755580732187,7.99264156,179.64,179.56,5.567]
[1755580734897,7.99264156,179.64,179.57,3.19]
[1755580735196,7.99264156,179.64,179.57,8.7569]
[1755580735887,7.99264156,179.64,179.57,3.19]
[1755580737897,3.03,179.64,179.57,8.7567]
[1755580738197,4.96264156,179.67,179.58,3.19]
[1755580738409,4.96264156,179.67,179.59,5.5661]
[1755580738710,4.96264156,179.67,179.6,3.19]
[1755580740506,4.96264156,179.67,179.6,8.7559]
[1755580741010,2.95,179.68,179.62,3.19]
[1755580741613,0.96895448,179.71,179.64,3.19]
[1755580741909,2.95,179.72,179.64,3.19]
[1755580742902,2.95,179.71,179.64,3.19]
[1755580744119,2.95,179.68,179.6,3.19]
[1755580748909,7.20200884,179.73,179.64,4.96264156]
[1755580749118,12.29982432,179.76,179.67,4.96264156]
[1755580749119,2.95,179.76,179.67,4.96264156]
[1755580749416,2.95,179.76,179.68,3.19]
[1755580749911,2.95,179.76,179.69,5.563]
[1755580750109,2.95,179.76,179.68,3.19]
[1755580751016,2.95,179.76,179.66,5.564]
[1755580751406,2.95,179.76,179.65,8.7543]
[1755580751613,2.95,179.73,179.65,3.19]
[1755580752315,2.95,179.73,179.63,5.5648]
[1755580752511,2.95,179.7,179.62,3.19]
[1755580753012,2.95,179.7,179.62,8.7551]
[1755580753710,2.95,179.7,179.62,3.19]
[1755580754416,2.95,179.7,179.59,5.566]
[1755580757107,2.95,179.7,179.6,3.19]
[1755580759815,4.37124995,179.69,179.56,137.9]
[1755580760116,4.37124995,179.68,179.57,3.19]
[1755580760416,2.95,179.66,179.57,3.19]
[1755580762319,4.37213366,179.65,179.57,3.19]
[1755580762512,3.04,179.64,179.57,3.19]
[1755580762711,3.04,179.64,179.5,2.92]
[1755580762908,4.37293319,179.63,179.5,2.92]
[1755580763115,3.04,179.61,179.5,8.4889]
[1755580764011,3.04,179.61,179.5,2.92]
[1755580764617,3.04,179.61,179.48,2.92]
[1755580765221,3.04,179.64,179.55,2.92]
[1755580766026,3.04,179.64,179.55,8.4875]
[1755580766824,3.04,179.64,179.55,2.92]
[1755580767322,3.04,179.62,179.47,2.92]
[1755580767520,3.04,179.62,179.46,7.71070443]
[1755580767521,3.04,179.62,179.51,8.4887]
[1755580769721,3.04,179.62,179.51,2.92]
[1755580770815,3.04,179.62,179.51,5.5686]
[1755580771017,3.04,179.62,179.52,2.92]
[1755580771427,3.04,179.66,179.56,2.92]
[1755580771929,3.04,179.66,179.57,2.92]
[1755580784940,145.97070443,179.7,179.57,2.92]
[1755580785141,7.50851617,179.69,179.57,5.5668]
[1755580785342,4.46851617,179.68,179.58,2.92]
[1755580785541,3.04,179.67,179.58,2.92]
[1755580785741,4.46897459,179.66,179.58,2.92]
[1755580786040,3.04,179.65,179.58,2.92]
[1755580787642,3.04,179.69,179.58,2.92]
[1755580787839,4.46946902,179.68,179.58,2.92]
[1755580788044,7.50946902,179.67,179.58,2.92]
[1755580788343,3.04,179.67,179.58,2.92]
[1755580789544,3.04,179.67,179.59,2.92]
[1755580797357,4.47969804,179.66,179.59,2.92]
[1755580797563,3.04,179.67,179.59,2.92]
[1755580797758,4.47969804,179.66,179.59,2.92]
[1755580797959,3.04,179.67,179.59,2.92]
[1755580798157,4.47969804,179.66,179.59,2.92]
[1755580798358,3.04,179.67,179.59,2.92]
[1755580798558,4.48138246,179.66,179.59,2.92]
[1755580798760,3.04,179.67,179.59,2.92]
[1755580799059,4.48138246,179.66,179.59,2.92]
[1755580799364,3.04,179.67,179.59,8.4862]
[1755580799666,4.48224897,179.66,179.59,8.4862]
[1755580799865,3.04,179.67,179.59,8.4862]
[1755580800165,4.48205861,179.66,179.59,2.92]
[1755580800364,3.04,179.67,179.59,2.92]
[1755580800662,4.48254336,179.66,179.59,2.92]
[1755580800964,3.04,179.67,179.59,2.92]
[1755580801170,4.48245914,179.66,179.59,2.92]
[1755580801464,3.04,179.67,179.59,2.92]
[1755580801662,4.48290317,179.66,179.59,2.92]
[1755580801860,3.04,179.67,179.6,3.02]
[1755580802059,141.19,179.7,179.6,3.02]
[1755580802267,7.41320506,179.69,179.6,3.02]
[1755580802469,4.48320506,179.68,179.6,8.5858]
[1755580802663,4.48320506,179.67,179.6,8.5858]
[1755580802866,2.93,179.69,179.6,8.5858]
[1755580803065,4.482965,179.68,179.6,3.02]
[1755580803265,4.482965,179.67,179.6,3.02]
[1755580803466,2.93,179.69,179.6,3.02]
[1755580803767,4.48322311,179.68,179.6,3.02]
[1755580803964,4.48322311,179.67,179.6,3.02]
[1755580804162,2.93,179.69,179.6,3.02]
[1755580804369,4.48351654,179.68,179.6,3.02]
[1755580804564,4.48351654,179.67,179.6,3.02]
[1755580804769,2.93,179.69,179.6,3.02]
[1755580804967,4.48373836,179.68,179.6,3.02]
[1755580805273,4.48373836,179.67,179.6,3.02]
[1755580805463,2.93,179.69,179.6,3.02]
[1755580805664,4.48338501,179.68,179.6,3.02]
[1755580805968,2.93,179.69,179.6,3.02]
[1755580805969,2.93,179.66,179.6,3.02]
[1755580812282,7.88834789,179.7,179.6,3.02]
[1755580812575,4.48465839,179.69,179.6,3.02]
[1755580812775,2.93,179.7,179.6,3.02]
[1755580813078,2.93,179.7,179.63,5.565]
[1755580813277,2.93,179.7,179.64,3.02]
[1755580814174,2.93,179.7,179.63,5.565]
[1755580814374,2.93,179.7,179.66,3.02]
[1755580814879,2.93,179.71,179.66,3.02]
[1755580815178,137.86,179.72,179.66,3.02]
[1755580815179,2.93,179.69,179.66,3.02]
[1755580815980,140.79,179.72,179.66,3.02]
[1755580816277,4.95834789,179.75,179.63,3.02]
[1755580816472,4.48457574,179.74,179.66,3.02]
[1755580816673,4.48457574,179.73,179.68,5.5635]
[1755580816874,147.00321621,179.77,179.7,3.02]
[1755580817074,4.48390608,179.76,179.7,3.02]
[1755580817280,2.93,179.74,179.7,3.02]
[1755580817484,4.48390608,179.73,179.7,3.02]
[1755580817680,2.93,179.74,179.7,3.02]
[1755580817882,4.48161559,179.73,179.7,3.02]
[1755580818080,2.93,179.74,179.7,3.02]
[1755580818283,137.84,179.77,179.66,3.02]
[1755580818478,4.47993233,179.76,179.66,3.02]
[1755580818678,4.47993233,179.75,179.68,5.5635]
[1755580818881,9.16321621,179.82,179.71,4.95834789]
[1755580819081,4.47941654,179.81,179.72,3.02]
[1755580819278,2.93,179.82,179.72,3.02]
[1755580819478,4.4726214,179.81,179.72,3.02]
[1755580819676,2.93,179.82,179.75,3.02]
[1755580819883,4.47261563,179.81,179.75,3.02]
[1755580820184,2.93,179.82,179.75,3.02]
[1755580820777,511.92,179.84,179.76,3.02]
[1755580820977,4.46796267,179.83,179.76,3.02]
[1755580821277,511.92,179.84,179.76,3.02]
[1755580821473,7.39425185,179.83,179.73,3.02]
[1755580821681,12.35259974,179.82,179.73,3.02]
[1755580821882,7.88834789,179.82,179.73,3.02]
[1755580822084,511.92,179.84,179.73,3.02]
[1755580822484,3.19,179.83,179.76,2.95]
[1755580822681,3.19,179.83,179.72,2.95]
[1755580822882,3.19,179.81,179.72,2.95]
[1755580823184,3.19,179.78,179.72,2.95]
[1755580823480,4.95834789,179.79,179.72,2.95]
[1755580823686,8.14834789,179.82,179.72,2.95]
[1755580823883,3.19,179.82,179.72,2.95]
[1755580824185,3.19,179.82,179.75,2.95]
[1755580824876,3.19,179.78,179.72,2.95]
[1755580825480,3.19,179.78,179.69,2.95]
[1755580825680,140.97,179.78,179.69,2.95]
[1755580825983,4.95834789,179.76,179.69,2.95]
[1755580828391,397.99141586,179.84,179.72,4.95834789]
[1755580828392,375.04819965,179.84,179.72,4.95834789]
[1755580828692,378.23819965,179.84,179.73,2.95]
[1755580828886,377.27,179.84,179.73,2.95]
[1755580829086,377.27,179.84,179.76,2.95]
[1755580831191,377.27,179.84,179.76,8.511]
[1755580831393,377.27,179.84,179.76,2.95]
[1755580831589,3.19,179.84,179.77,5.5608]
[1755580831786,138.06,179.85,179.78,2.95]
[1755580831986,3.19,179.87,179.78,2.95]
[1755580832696,3.19,179.87,179.78,8.5105]
[1755580833289,3.19,179.85,179.74,5.5615]
[1755580833797,3.19,179.85,179.76,5.5611]
[1755580833990,3.19,179.85,179.77,2.95]
[1755580834389,3.19,179.85,179.72,4.95834789]
[1755580834584,3.19,179.85,179.73,2.95]
[1755580834996,3.19,179.85,179.75,2.95]
[1755580835890,3.19,179.83,179.72,2.95]
[1755580836687,3.19,179.83,179.74,2.95]
[1755580841398,3.19,179.83,179.7,13.47114789]
[1755580841591,4.95834789,179.81,179.7,13.47114789]
[1755580841791,3.19,179.8,179.7,13.47114789]
[1755580843296,3.19,179.8,179.71,2.95]
[1755580843997,4.95834789,179.78,179.71,2.95]
[1755580844200,3.19,179.77,179.71,2.95]
[1755580844396,4.95834789,179.84,179.73,5.562]
[1755580844701,3.19,179.85,179.74,2.95]
[1755580845293,3.19,179.85,179.74,8.5117]
[1755580845696,4.95834789,179.84,179.74,2.95]
[1755580845899,3.19,179.83,179.74,2.95]
[1755580852301,3.19,179.83,179.74,8.5117]
[1755580852502,3.19,179.83,179.75,2.92]
[1755580855900,2.89,179.87,179.75,2.92]
[1755580856098,4.42612608,179.86,179.76,4.95834789]
[1755580856403,2.89,179.87,179.77,2.92]
[1755580856600,4.42835338,179.86,179.77,2.92]
[1755580856804,2.89,179.87,179.77,2.92]
[1755580857004,4.42812671,179.86,179.77,2.92]
[1755580857206,2.89,179.87,179.77,2.92]
[1755580857407,4.43097174,179.86,179.77,2.92]
[1755580857702,2.89,179.87,179.77,2.92]
[1755580857902,4.43097174,179.86,179.77,2.92]
[1755580858105,2.89,179.87,179.77,2.92]
[1755580858307,4.43097174,179.86,179.77,2.92]
[1755580858506,4.43097174,179.85,179.77,2.92]
[1755580858699,2.89,179.87,179.77,2.92]
[1755580858893,4.43239397,179.86,179.77,2.92]
[1755580859093,2.89,179.87,179.77,2.92]
[1755580859299,4.43424326,179.86,179.77,2.92]
[1755580859500,4.43424326,179.85,179.77,2.92]
[1755580859799,2.89,179.87,179.77,2.92]
[1755580860000,4.43424326,179.86,179.77,2.92]
[1755580860200,2.89,179.84,179.73,2.92]
[1755580860510,2.89,179.82,179.73,2.92]
[1755580861008,4.43796469,179.81,179.73,2.92]
[1755580861211,2.89,179.82,179.73,2.92]
[1755580861509,4.43998923,179.81,179.73,2.92]
[1755580861703,2.89,179.82,179.73,2.92]
[1755580861910,2.89,179.8,179.73,2.92]
[1755580864313,7.84834789,179.83,179.73,2.92]
[1755580864499,4.44115995,179.82,179.74,4.95834789]
[1755580864706,2.89,179.83,179.74,4.95834789]
[1755580864707,2.89,179.83,179.75,2.92]
[1755580865915,2.89,179.83,179.75,8.4814]
[1755580866712,2.89,179.83,179.77,2.92]
[1755580866916,2.89,179.87,179.77,2.92]
[1755580867107,4.44029381,179.86,179.77,2.92]
[1755580867313,7.33029381,179.85,179.77,2.92]
[1755580867609,2.89,179.83,179.77,2.92]
[1755580870913,2.89,179.86,179.77,2.92]
[1755580871114,4.4403751,179.85,179.77,2.92]
[1755580871311,2.89,179.86,179.77,2.92]
[1755580871515,4.44143154,179.85,179.77,2.92]
[1755580871815,2.89,179.86,179.77,2.92]
[1755580872004,4.44143154,179.85,179.77,2.92]
[1755580872210,2.89,179.86,179.77,2.92]
[1755580872413,4.44288299,179.85,179.77,8.4808]
[1755580872720,2.89,179.86,179.77,8.4808]
[1755580872907,4.44266595,179.85,179.77,8.4808]
[1755580873106,2.89,179.86,179.77,5.5608]
[1755580873309,2.89,179.86,179.78,2.92]
[1755580874103,2.89,179.86,179.78,8.4805]
[1755580874309,2.89,179.86,179.78,2.92]
[1755580875220,140.77,179.88,179.78,7.87834789]
[1755580875510,140.77,179.88,179.79,2.92]
[1755580875709,140.77,179.88,179.79,5.5602]
[1755580875910,140.77,179.88,179.8,2.92]
[1755580876519,7.33021445,179.87,179.8,2.92]
[1755580876714,4.44048612,179.86,179.8,2.92]
[1755580876911,2.89,179.87,179.8,2.92]
[1755580877112,4.44048612,179.86,179.8,2.92]
[1755580877312,2.89,179.87,179.8,2.92]
[1755580877512,2.89,179.87,179.76,5.5611]
[1755580877719,2.89,179.85,179.76,5.5611]
[1755580878720,2.89,179.85,179.75,7.87834789]
[1755580878919,4.44073653,179.84,179.75,2.92]
[1755580879119,2.89,179.83,179.75,2.92]
[1755580879314,2.89,179.83,179.75,8.4814]
[1755580879515,2.89,179.83,179.75,2.92]
[1755580880513,2.89,179.83,179.76,5.5609]
[1755580880714,2.89,179.86,179.77,2.92]
[1755580881423,2.89,179.86,179.78,10.51864789]
[1755580881615,2.89,179.86,179.79,2.92]
[1755580882106,2.89,179.86,179.79,8.4802]
[1755580882512,2.89,179.86,179.79,2.92]
[1755580883514,2.89,179.86,179.79,8.4802]
[1755580883815,2.89,179.86,179.79,2.92]
[1755580884610,2.89,179.86,179.79,8.48]
[1755580886219,137.88,179.88,179.79,2.92]
[1755580886422,3.06,179.87,179.79,2.92]
[1755580886622,3.06,179.87,179.8,5.5598]
[1755580887226,3.06,179.87,179.81,5.5596]
[1755580887625,3.06,179.87,179.79,2.92]
[1755580888631,3.06,179.87,179.79,3.05]
[1755580889032,137.88,179.88,179.82,8.6091]
[1755580889221,137.88,179.88,179.82,3.05]
[1755580889623,3.06,179.9,179.84,3.05]
[1755580890726,3.06,179.9,179.83,5.5588]
[1755580891435,3.06,179.9,179.82,5.5593]
[1755580891929,3.06,179.9,179.81,3.05]
[1755580892132,3.06,179.88,179.81,3.05]
[1755580892331,4.95834789,179.91,179.81,3.05]
[1755580892332,3.06,179.93,179.81,3.05]
[1755580892529,4.43642498,179.92,179.83,5.559]
[1755580892837,3.06,179.91,179.83,3.05]
[1755580893232,0.96770157,179.94,179.83,3.05]
[1755580893438,3.06,179.92,179.83,3.05]
[1755580895725,3.06,179.92,179.85,5.5583]
[1755580896134,3.06,179.92,179.86,5.558]
[1755580896538,3.06,179.92,179.85,3.05]
[1755580896729,3.06,179.92,179.85,8.6083]
[1755580897341,3.06,179.92,179.85,3.05]
[1755580897632,3.06,179.92,179.82,3.05]
[1755580897833,3.06,179.91,179.82,3.05]
[1755580898726,4.42275823,179.9,179.79,8.00834789]
[1755580899033,3.06,179.85,179.77,3.05]
[1755580899433,138.24,179.89,179.71,3.05]
[1755580899434,3.06,179.82,179.71,3.05]
[1755580899735,3.06,179.79,179.71,3.05]
[1755580900529,138.48,179.82,179.71,8.00834789]
[1755580900730,138.48,179.82,179.72,3.05]
[1755580901336,138.48,179.82,179.76,3.05]
[1755580902136,138.48,179.82,179.76,8.6111]
[1755580902532,3.06,179.81,179.72,3.05]
[1755580902732,3.06,179.81,179.72,8.6122]
[1755580902932,3.06,179.81,179.72,3.05]
[1755580903929,3.06,179.79,179.69,3.05]
[1755580904325,3.06,179.79,179.69,8.6133]
[1755580904839,3.06,179.79,179.69,3.05]
[1755580905639,3.06,179.79,179.7,5.5628]
[1755580906044,3.06,179.79,179.69,3.05]
[1755580906239,3.06,179.79,179.72,5.5621]
[1755580906540,3.06,179.79,179.72,8.6121]
[1755580906745,3.06,179.79,179.73,5.562]
[1755580906936,138.48,179.82,179.73,5.562]
[1755580907747,3.06,179.81,179.72,8.6123]
[1755580908942,3.06,179.81,179.73,5.562]
[1755580909242,3.06,179.81,179.74,3.05]
[1755580911043,3.06,179.85,179.75,3.05]
[1755580912247,3.06,179.85,179.76,5.5611]
[1755580915248,3.06,179.85,179.75,3.05]
[1755580916455,3.06,179.85,179.75,8.6114]
[1755580917854,3.06,179.85,179.75,3.05]
[1755580918055,3.02,179.83,179.75,3.05]
[1755580918249,4.95834789,179.83,179.75,3.05]
[1755580918450,3.02,179.82,179.75,3.05]
[1755580921757,6.23321621,179.87,179.71,4.95834789]
[1755580921758,3.02,179.79,179.71,3.05]
[1755580922468,3.02,179.79,179.67,3.05]
[1755580922658,4.95834789,179.74,179.67,3.05]
[1755580922857,3.02,179.73,179.67,3.05]
[1755580924257,3.02,179.76,179.67,3.05]
[1755580925367,3.02,179.79,179.67,4.95834789]
[1755580925567,3.02,179.79,179.68,3.05]
[1755580926069,3.02,179.79,179.7,3.05]
[1755580928969,3.02,179.76,179.65,3.05]
[1755580929468,3.02,179.76,179.66,5.5641]
[1755580929666,3.02,179.76,179.67,3.05]
[1755580930964,3.02,179.73,179.67,3.05]
[1755580931276,3.02,179.73,179.61,4.95834789]
[1755580931277,3.02,179.73,179.62,3.05]
[1755580931570,7.97834789,179.71,179.62,8.6154]
[1755580931971,7.97834789,179.71,179.62,3.05]
[1755580934068,7.97834789,179.68,179.62,3.05]
[1755580934268,7.97834789,179.68,179.58,3.05]
[1755580934467,7.97834789,179.68,179.58,8.6166]
[1755580935267,7.97834789,179.68,179.58,3.05]
[1755580936466,7.97834789,179.68,179.58,8.6166]
[1755580936870,7.97834789,179.68,179.58,3.05]
[1755580937666,3.02,179.67,179.58,3.05]
[1755580937863,3.02,179.67,179.45,6.13162654]
[1755580937864,3.02,179.64,179.53,3.05]
[1755580938066,3.02,179.61,179.49,3.05]
[1755580938373,3.02,179.58,179.49,3.05]
[1755580938568,4.95834789,179.64,179.45,3.05]
[1755580938569,3.02,179.55,179.45,3.05]
[1755580938967,4.95834789,179.53,179.45,3.05]
[1755580940367,3.02,179.55,179.45,3.05]
[1755580946375,3.02,179.55,179.46,5.5702]
[1755580946578,3.02,179.55,179.46,3.17]
[1755580949781,3.02,179.55,179.42,3.17]
[1755580950073,155.13,179.62,179.42,3.17]
[1755580950074,2.98,179.52,179.42,3.17]
[1755580956485,391.05,179.55,179.38,3.17]
[1755580956486,2.98,179.48,179.38,3.17]
[1755580957782,7.72523988,179.53,179.38,3.17]
[1755580957984,2.98,179.51,179.38,3.17]
[1755580958586,2.98,179.51,179.4,5.5722]
[1755580958786,2.98,179.51,179.41,3.17]
[1755580961383,2.98,179.51,179.41,8.7419]
[1755580961587,2.98,179.54,179.42,3.17]
[1755580961982,2.98,179.54,179.44,3.17]
[1755580962183,374.34,179.55,179.44,3.17]
[1755580962387,374.34,179.55,179.44,4.9643763]
[1755580962584,374.34,179.55,179.45,3.17]
[1755580963585,2.98,179.54,179.45,3.17]
[1755580964494,7.9443763,179.54,179.45,3.17]
[1755580964687,2.98,179.53,179.45,3.17]
[1755580964887,7.9443763,179.51,179.45,3.17]
[1755580966395,7.9443763,179.51,179.4,5.5723]
[1755580966696,7.9443763,179.51,179.41,3.17]
[1755580966897,374.34,179.55,179.39,5.5724]
[1755580966898,4.9643763,179.48,179.39,5.5724]
[1755580967099,4.9643763,179.48,179.4,3.17]
[1755580967595,4.9643763,179.48,179.41,3.17]
[1755580967899,2.98,179.5,179.41,3.17]
[1755580968490,2.98,179.5,179.42,3.17]
[1755580969100,4.9643763,179.52,179.42,3.17]
[1755580969699,2.98,179.51,179.42,3.17]
[1755580970296,7.9443763,179.46,179.37,3.17]
[1755580970492,7.9443763,179.46,179.34,0.96994021]
[1755580970700,7.9443763,179.43,179.35,3.17]
[1755580972401,2.98,179.43,179.35,3.17]
[1755580972793,4.4217494,179.42,179.32,3.17]
[1755580973104,3.03,179.41,179.32,3.17]
[1755580975097,3.03,179.41,179.32,8.7447]
[1755580975304,3.03,179.41,179.33,3.17]
[1755580975491,10.76574682,179.44,179.33,3.17]
[1755580975997,10.76574682,179.44,179.34,3.17]
[1755580977299,10.76574682,179.44,179.36,3.17]
[1755580977597,141.23,179.47,179.36,3.17]
[1755580977804,4.4368546,179.46,179.36,3.17]
[1755580978003,4.4368546,179.45,179.36,3.17]
[1755580978204,4.44068939,179.44,179.36,8.7434]
[1755580978402,3.03,179.47,179.37,3.17]
[1755580978599,4.44072057,179.46,179.37,3.17]
[1755580978799,3.03,179.47,179.37,3.17]
[1755580979210,4.44369288,179.46,179.38,5.5728]
[1755580979506,3.03,179.47,179.39,3.17]
[1755580979695,4.44369166,179.46,179.39,3.17]
[1755580979900,3.03,179.47,179.39,3.17]